bitfinex/quotes_SOLUSD_20240725
["timestamp","ask_amount","ask_price","bid_price","bid_amount"]
[1721931684092,5.8644,170.52,170.46,3.0]
[1721931684398,29.7,170.5,170.46,3.0]
[1721931684894,29.7,170.47,170.46,3.0]
[1721931685097,35.5661,170.47,170.46,0.36401689]
[1721931685302,29.7,170.47,170.46,0.36401689]
[1721931685595,29.7,170.5,170.46,0.36401689]
[1721931685969,35.5651,170.5,170.46,0.36401689]
[1721931687101,29.7,170.5,170.46,0.36401689]
[1721931687297,5.8656,170.49,170.46,0.36401689]
[1721931687687,35.5661,170.47,170.46,0.36401689]
[1721931688083,41.9948,170.47,170.46,0.36401689]
[1721931690694,36.1287,170.47,170.35,15.4609]
[1721931690898,5.8679,170.42,170.35,15.4609]
[1721931691105,29.7,170.45,170.36,45.0]
[1721931691705,29.7,170.45,170.35,15.4609]
[1721931691915,5.8684,170.41,170.33,6.5759]
[1721931692087,29.7,170.42,170.34,1.17402426]
[1721931692405,29.7,170.42,170.33,6.5759]
[1721931693094,29.7,170.42,170.34,46.17385222]
[1721931693401,29.7,170.42,170.34,45.0]
[1721931693913,29.7,170.45,170.35,1.173784]
[1721931694113,29.7,170.45,170.36,1.17378344]
[1721931694315,2.37503159,170.47,170.36,1.17378344]
[1721931694606,29.7,170.45,170.36,46.17378344]
[1721931694796,29.7,170.45,170.37,45.0]
[1721931694998,5.8678,170.42,170.34,45.0]
[1721931695198,29.7,170.45,170.34,45.0]
[1721931695713,35.567,170.45,170.34,45.0]
[1721931695915,35.567,170.45,170.35,1.17382224]
[1721931696211,35.567,170.45,170.34,46.17376107]
[1721931696212,29.7,170.45,170.34,46.17376107]
[1721931696612,35.566,170.48,170.34,46.17376107]
[1721931696818,29.7,170.45,170.35,20.0]
[1721931696987,5.8674,170.44,170.36,45.0]
[1721931697394,29.7,170.45,170.33,6.5759]
[1721931697613,5.8682,170.41,170.33,6.5759]
[1721931697906,29.7,170.42,170.33,6.5759]
[1721931698088,29.7,170.45,170.33,7.74991201]
[1721931698290,35.5669,170.45,170.33,7.74991201]
[1721931698486,5.8674,170.44,170.33,7.74991201]
[1721931698692,29.7,170.45,170.33,7.74991201]
[1721931699012,29.7,170.45,170.34,45.0]
[1721931699221,5.8682,170.41,170.34,45.0]
[1721931699402,5.8679,170.42,170.34,45.0]
[1721931699709,29.7,170.45,170.35,1.17391644]
[1721931699907,29.7,170.45,170.34,45.0]
[1721931699908,29.7,170.42,170.34,45.0]
[1721931700118,5.8684,170.41,170.34,45.0]
[1721931700328,5.8684,170.41,170.31,15.5665]
[1721931700329,29.7,170.42,170.31,15.5665]
[1721931700619,5.8688,170.4,170.31,15.5665]
[1721931700827,35.5681,170.42,170.31,15.5665]
[1721931700998,29.7,170.42,170.32,1.17391807]
[1721931701315,44.3698,170.42,170.31,15.5665]
[1721931701524,5.8695,170.37,170.29,6.116]
[1721931701827,5.8695,170.37,170.27,15.4042]
[1721931702001,29.7,170.39,170.27,16.5784932]
[1721931702498,29.7,170.39,170.27,15.4042]
[1721931702831,35.5709,170.33,170.25,0.8073535]
[1721931703118,29.7,170.33,170.25,0.8073535]
[1721931703319,29.7,170.33,170.25,0.77043607]
[1721931703511,35.5709,170.33,170.25,0.77043607]
[1721931703708,29.7,170.33,170.25,0.77043607]
[1721931703899,5.8718,170.31,170.25,0.77043607]
[1721931704110,5.8721,170.3,170.25,0.77043607]
[1721931704306,29.7,170.33,170.25,0.77043607]
[1721931704803,5.8717,170.31,170.25,0.77043607]
[1721931705004,29.7,170.33,170.25,0.77043607]
[1721931705221,29.7,170.3,170.25,0.77043607]
[1721931706428,29.7,170.3,170.21,6.0974]
[1721931706717,29.7,170.3,170.22,45.0]
[1721931706921,29.7,170.33,170.22,45.0]
[1721931707099,35.5709,170.33,170.22,45.0]
[1721931707298,29.7,170.33,170.22,45.0]
[1721931707620,29.7,170.33,170.23,1.17459191]
[1721931707794,29.7,170.33,170.22,45.0]
[1721931708428,5.8709,170.33,170.22,45.0]
[1721931708609,32.02159329,170.35,170.22,46.1746614]
[1721931708804,29.7,170.35,170.22,46.1746614]
[1721931709192,29.7,170.35,170.23,20.0]
[1721931709424,29.7,170.35,170.22,46.1746614]
[1721931709425,35.5703,170.35,170.24,45.0]
[1721931709718,29.7,170.35,170.24,45.0]
[1721931709923,29.7,170.35,170.25,15.446]
[1721931710227,5.8706,170.34,170.26,45.0]
[1721931710407,5.871,170.33,170.26,45.0]
[1721931710615,5.8709,170.34,170.26,45.0]
[1721931710820,29.7,170.35,170.26,45.0]
[1721931711016,5.8716,170.31,170.26,45.0]
[1721931711213,5.8716,170.31,170.21,21.5434]
[1721931711412,5.8716,170.31,170.22,45.0]
[1721931711806,5.8728,170.28,170.21,15.446]
[1721931712130,5.8737,170.25,170.17,21.5595]
[1721931712631,35.5733,170.26,170.17,21.5595]
[1721931713598,35.5734,170.26,170.17,21.5595]
[1721931713812,29.7,170.26,170.17,21.5595]
[1721931714317,29.7,170.26,170.18,45.0]
[1721931715126,29.7,170.26,170.19,1.17495878]
[1721931715312,29.7,170.26,170.18,45.0]
[1721931716103,35.5733,170.26,170.18,45.0]
[1721931716539,5.8738,170.25,170.17,21.5595]
[1721931716914,5.8738,170.25,170.17,15.446]
[1721931717424,35.5734,170.26,170.17,15.446]
[1721931717809,5.8737,170.25,170.17,15.446]
[1721931718009,5.8737,170.25,170.14,1.17524356]
[1721931718318,5.8737,170.25,170.15,1.17529285]
[1721931718712,29.7,170.26,170.14,1.17529108]
[1721931718923,29.7,170.26,170.13,22.3326]
[1721931719233,35.5746,170.23,170.13,22.3326]
[1721931719435,5.8747,170.22,170.13,16.0625]
[1721931719732,29.7,170.23,170.13,16.0625]
[1721931720102,35.5744,170.23,170.13,16.0625]
[1721931720302,29.7,170.23,170.13,16.0625]
[1721931720604,5.8751,170.21,170.13,16.0625]
[1721931720804,29.7,170.23,170.14,45.0]
[1721931720999,35.5744,170.23,170.14,45.0]
[1721931721629,29.7,170.23,170.15,1.17538053]
[1721931721828,29.7,170.23,170.14,45.0]
[1721931722121,29.7,170.23,170.15,1.1752921]
[1721931722322,35.5734,170.26,170.15,1.1752921]
[1721931722524,35.5733,170.26,170.14,45.0]
[1721931722724,5.8737,170.25,170.14,45.0]
[1721931723027,29.7,170.26,170.14,46.17518683]
[1721931723227,5.8739,170.25,170.14,45.0]
[1721931723433,35.5734,170.26,170.14,45.0]
[1721931723629,5.8738,170.25,170.14,45.0]
[1721931723927,35.5744,170.23,170.14,45.0]
[1721931724125,5.8751,170.21,170.14,45.0]
[1721931724319,380.5,170.26,170.09,22.3981]
[1721931724320,5.876,170.19,170.09,22.3981]
[1721931724715,35.5755,170.2,170.09,22.3981]
[1721931725312,5.8762,170.18,170.09,22.3981]
[1721931725528,51.5066,170.2,170.09,22.3981]
[1721931726021,29.7,170.17,170.09,22.3981]
[1721931726328,5.8776,170.14,170.09,15.9206]
[1721931726635,5.8776,170.14,170.07,0.8073535]
[1721931726636,35.5775,170.14,170.07,0.8073535]
[1721931727121,29.7,170.14,170.07,0.8073535]
[1721931727523,35.5775,170.14,170.07,0.8073535]
[1721931728021,29.7,170.14,170.07,0.8073535]
[1721931728224,35.5775,170.14,170.07,0.8073535]
[1721931728815,386.3767,170.17,170.08,5.8792]
[1721931729013,388.81431866,170.17,170.08,5.8792]
[1721931729237,29.7,170.16,170.07,0.8073535]
[1721931729420,5.8772,170.15,170.07,0.8073535]
[1721931729925,35.5768,170.16,170.07,7.86308385]
[1721931730119,35.5768,170.16,170.08,45.0]
[1721931730325,29.7,170.16,170.08,50.8795]
[1721931730523,29.7,170.16,170.09,7.05503034]
[1721931730741,380.5,170.19,170.1,45.0]
[1721931731038,410.2,170.19,170.1,45.0]
[1721931731736,5.8768,170.16,170.1,45.0]
[1721931731915,5.8768,170.16,170.09,45.0]
[1721931732117,412.58955629,170.19,170.09,45.0]
[1721931732333,412.58955629,170.19,170.07,0.8073535]
[1721931732334,29.7,170.16,170.07,0.8073535]
[1721931732728,35.577,170.16,170.08,5.8795]
[1721931732926,29.7,170.16,170.08,5.8795]
[1721931733329,5.8772,170.15,170.07,0.8073535]
[1721931733534,29.7,170.16,170.07,6.6871535]
[1721931733741,29.7,170.16,170.08,45.0]
[1721931733919,29.7,170.16,170.09,1.17580577]
[1721931734124,418.46535629,170.19,170.1,5.8788]
[1721931734339,412.58955629,170.19,170.08,50.8793]
[1721931734535,5.8771,170.16,170.08,45.0]
[1721931734942,35.5771,170.16,170.08,45.0]
[1721931735446,29.7,170.16,170.09,5.8792]
[1721931735621,5.8764,170.18,170.1,45.0]
[1721931735829,5.8766,170.17,170.09,1.17581514]
[1721931736141,32.08955629,170.19,170.09,1.17581514]
[1721931736528,32.08955629,170.19,170.08,46.17560804]
[1721931736529,29.7,170.19,170.08,46.17560804]
[1721931736749,29.7,170.19,170.11,5.8784]
[1721931736927,35.5757,170.19,170.12,46.17552192]
[1721931737126,29.7,170.19,170.12,45.0]
[1721931737328,29.7,170.19,170.13,1.17542497]
[1721931737529,15.341,170.2,170.13,7.05322497]
[1721931737738,15.341,170.2,170.14,45.0]
[1721931737942,29.7,170.22,170.15,1.17542169]
[1721931738146,380.5,170.23,170.15,1.17542169]
[1721931738456,380.5,170.23,170.16,5.8767]
[1721931738647,5.8741,170.24,170.17,45.0]
[1721931738823,35.5737,170.25,170.16,1.17519017]
[1721931739030,29.7,170.25,170.17,5.8764]
[1721931739342,29.7,170.25,170.18,45.0]
[1721931739529,380.5,170.27,170.19,1.17513792]
[1721931739734,386.373,170.27,170.19,1.17513792]
[1721931739940,5.8739,170.25,170.18,45.0]
[1721931740245,5.8742,170.24,170.18,45.0]
[1721931740442,29.7,170.25,170.15,1.17516367]
[1721931740634,29.7,170.25,170.15,45.0]
[1721931740948,5.8743,170.24,170.14,23.0791]
[1721931741141,29.7,170.25,170.15,1.17526745]
[1721931741447,380.5,170.27,170.15,1.17526745]
[1721931741622,386.373,170.27,170.15,1.17526745]
[1721931741824,5.8735,170.26,170.15,1.17526745]
[1721931742349,5.8737,170.25,170.15,46.17526745]
[1721931742738,5.8741,170.24,170.15,46.17526745]
[1721931743135,54.43834575,170.28,170.15,46.17526745]
[1721931743645,380.5,170.3,170.16,20.0]
[1721931743837,5.8723,170.29,170.17,46.17485667]
[1721931744150,5.8739,170.25,170.17,45.0]
[1721931744327,29.7,170.25,170.17,1.17516747]
[1721931744528,29.7,170.22,170.14,23.0791]
[1721931745650,5.8741,170.24,170.14,23.0791]
[1721931745952,35.5738,170.25,170.15,46.17523673]
[1721931746135,5.8741,170.24,170.15,45.0]
[1721931746725,35.5738,170.25,170.16,1.17518899]
[1721931746922,5.8744,170.23,170.15,45.0]
[1721931747353,5.8749,170.22,170.15,45.0]
[1721931747558,5.8744,170.23,170.15,45.0]
[1721931749059,29.7,170.22,170.1,22.6796]
[1721931749357,5.8754,170.21,170.11,1.17549367]
[1721931749848,29.7,170.22,170.11,1.17549367]
[1721931750045,5.8762,170.18,170.1,22.6796]
[1721931750247,5.8765,170.17,170.1,22.6796]
[1721931750443,5.8765,170.17,170.1,16.0323]
[1721931751043,5.8761,170.18,170.1,16.0323]
[1721931752129,5.8761,170.18,170.1,21.9111]
[1721931752350,35.5758,170.19,170.1,21.9111]
[1721931752754,5.8761,170.18,170.1,21.9111]
[1721931752936,29.7,170.19,170.08,5.8792]
[1721931753131,29.7,170.19,170.09,45.0]
[1721931753328,29.7,170.19,170.09,50.8791]
[1721931753731,5.8762,170.18,170.09,50.8791]
[1721931754437,5.8765,170.17,170.09,50.8791]
[1721931754958,5.8761,170.18,170.09,50.8791]
[1721931755328,5.8761,170.18,170.1,5.8787]
[1721931756053,5.8761,170.18,170.09,50.8791]
[1721931756764,29.7,170.19,170.09,45.0]
[1721931757058,5.8768,170.16,170.08,5.8795]
[1721931757258,5.8765,170.17,170.08,5.8795]
[1721931757656,5.8769,170.16,170.08,5.8795]
[1721931757957,5.8764,170.18,170.1,5.8788]
[1721931758560,5.8764,170.18,170.09,5.8791]
[1721931758861,5.8765,170.17,170.1,45.0]
[1721931759276,5.8762,170.18,170.1,50.8788]
[1721931760262,5.8764,170.17,170.1,45.0]
[1721931761657,5.8764,170.17,170.08,5.8795]
[1721931761958,5.8765,170.17,170.09,45.0]
[1721931762256,5.8762,170.18,170.09,50.8791]
[1721931763049,5.8765,170.17,170.09,50.8791]
[1721931763942,5.8769,170.16,170.09,45.0]
[1721931764243,5.8769,170.16,170.07,0.8073535]
[1721931764244,29.7,170.16,170.07,0.8073535]
[1721931764640,29.7,170.16,170.07,6.6871535]
[1721931764846,35.5769,170.16,170.07,6.6871535]
[1721931765164,35.5769,170.16,170.07,6.6869535]
[1721931765671,35.5769,170.16,170.08,50.8795]
[1721931765973,29.7,170.16,170.09,5.8792]
[1721931766654,35.577,170.16,170.08,45.0]
[1721931766962,35.577,170.16,170.08,50.8795]
[1721931767455,5.8772,170.15,170.08,45.0]
[1721931768402,29.7,170.16,170.08,45.0]
[1721931768675,5.8775,170.14,170.07,45.8073535]
[1721931769079,5.8785,170.11,170.07,0.8073535]
[1721931770268,45.731,170.13,170.07,0.8073535]
[1721931770451,60.4259,170.13,170.07,0.8073535]
[1721931770777,45.731,170.13,170.07,0.8073535]
[1721931771075,51.6089,170.13,170.07,0.8073535]
[1721931771252,45.731,170.13,170.07,0.8073535]
[1721931771856,29.7,170.13,170.07,0.8073535]
[1721931772250,29.7,170.13,170.07,6.6871535]
[1721931772445,380.5,170.15,170.07,6.6871535]
[1721931772952,386.3773,170.15,170.07,0.8073535]
[1721931774176,29.7,170.13,170.07,0.8073535]
[1721931775049,5.8782,170.12,170.07,0.8073535]
[1721931775374,29.7,170.13,170.07,0.8073535]
[1721931776878,5.8786,170.11,170.07,0.8073535]
[1721931777277,35.5781,170.13,170.07,0.8073535]
[1721931778350,5.8782,170.12,170.07,0.8073535]
[1721931778576,29.7,170.13,170.07,0.8073535]
[1721931778951,35.5779,170.13,170.07,0.8073535]
[1721931779348,5.8783,170.12,170.07,0.8073535]
[1721931779956,35.5779,170.13,170.07,0.8073535]
[1721931780888,5.8785,170.11,170.07,0.8073535]
[1721931781771,5.8789,170.1,170.07,0.8073535]
[1721931781962,29.7,170.13,170.07,0.8073535]
[1721931782295,35.5779,170.13,170.07,0.8073535]
[1721931782860,37.9872505,170.13,170.07,0.8073535]
[1721931783059,5.8782,170.12,170.07,0.8073535]
[1721931786163,14.97,170.08,170.07,0.8073535]
[1721931786765,20.8495,170.08,170.07,0.8073535]
[1721931787459,14.97,170.08,170.07,0.8073535]
[1721931787978,20.8495,170.08,170.07,0.8073535]
[1721931788172,6.5538,170.12,170.07,0.8073535]
[1721931788402,38.2274505,170.13,170.07,0.8073535]
[1721931790265,5.8782,170.12,170.07,0.8073535]
[1721931790488,32.3493505,170.13,170.07,0.8073535]
[1721931790993,5.8786,170.11,170.07,0.8073535]
[1721931791385,5.8789,170.1,170.07,0.8073535]
[1721931791894,5.8792,170.09,170.07,0.8073535]
[1721931792299,5.8789,170.1,170.07,0.8073535]
[1721931792597,29.94,170.1,170.07,0.8073535]
[1721931793169,5.8795,170.08,170.07,0.8073535]
[1721931793793,29.94,170.1,170.01,15.154]
[1721931794107,29.94,170.1,169.96,6.4759]
[1721931794108,5.8806,170.05,169.97,15.3054]
[1721931794282,5.8806,170.05,169.97,21.1887]
[1721931794472,29.94,170.07,169.97,15.3054]
[1721931794792,29.94,170.04,169.97,15.3054]
[1721931794973,5.8813,170.03,169.97,15.3054]
[1721931795379,29.94,170.04,169.97,15.3054]
[1721931795581,5.8817,170.02,169.93,20.9449]
[1721931796072,29.94,170.04,169.94,5.8842]
[1721931796073,5.8813,170.03,169.94,5.8842]
[1721931796393,29.94,170.04,169.93,15.0605]
[1721931796695,5.8824,170.0,169.93,15.0605]
[1721931796900,35.822,170.01,169.93,15.0605]
[1721931797273,29.94,170.01,169.93,20.9452]
[1721931797500,35.822,170.01,169.93,15.0605]
[1721931797997,5.8824,170.0,169.93,15.0605]
[1721931798294,5.8831,169.98,169.93,15.0605]
[1721931798694,22.849,170.03,169.93,15.0605]
[1721931799000,5.8834,169.97,169.9,1.98421088]
[1721931799312,5.8827,169.99,169.9,7.87019309]
[1721931799477,5.8832,169.98,169.9,0.8073535]
[1721931799672,5.8841,169.95,169.9,0.8073535]
[1721931799889,5.8837,169.96,169.9,0.8073535]
[1721931800111,5.8841,169.95,169.9,0.8073535]
[1721931800403,5.8845,169.94,169.9,0.8073535]
[1721931800713,35.8241,169.95,169.9,0.8073535]
[1721931801216,5.8845,169.94,169.9,0.8073535]
[1721931801509,29.94,169.95,169.9,0.8073535]
[1721931801807,14.708,169.98,169.9,0.8073535]
[1721931801808,5.8854,169.91,169.9,0.8073535]
[1721931802383,5.8867,169.88,169.79,21.6274]
[1721931802690,29.94,169.88,169.81,5.8888]
[1721931803203,29.94,169.88,169.79,15.7381]
[1721931803378,29.94,169.88,169.79,16.91576064]
[1721931803580,29.94,169.88,169.79,15.7381]
[1721931803813,29.94,169.85,169.75,21.57352647]
[1721931804010,29.94,169.85,169.75,5.30342647]
[1721931804185,35.8275,169.85,169.75,11.19432647]
[1721931804374,35.8275,169.85,169.76,5.8904]
[1721931805195,5.8881,169.84,169.75,5.30342647]
[1721931805397,29.94,169.82,169.73,0.8073535]
[1721931805597,29.94,169.82,169.75,5.8906]
[1721931805918,29.94,169.82,169.73,0.8073535]
[1721931806111,29.94,169.82,169.75,5.8909]
[1721931806295,29.94,169.82,169.73,0.8073535]
[1721931806296,5.8889,169.81,169.73,0.8073535]
[1721931806497,29.94,169.82,169.73,0.8073535]
[1721931806815,29.94,169.82,169.73,6.6989535]
[1721931807012,29.94,169.82,169.76,5.8905]
[1721931807321,35.8275,169.85,169.73,0.8073535]
[1721931807485,29.94,169.85,169.73,0.8073535]
[1721931807684,5.8879,169.84,169.74,5.891]
[1721931807884,5.8879,169.84,169.75,50.8908]
[1721931808110,29.94,169.85,169.75,45.0]
[1721931808419,5.8886,169.82,169.75,45.0]
[1721931808808,29.94,169.82,169.73,0.8073535]
[1721931809125,5.889,169.81,169.73,0.8073535]
[1721931809292,29.94,169.82,169.73,6.6990535]
[1721931809604,29.94,169.82,169.73,0.8073535]
[1721931809804,29.94,169.82,169.76,5.8903]
[1721931810007,29.94,169.82,169.75,5.8909]
[1721931810225,29.94,169.82,169.73,0.8073535]
[1721931810226,5.8889,169.81,169.73,0.8073535]
[1721931810386,29.94,169.82,169.73,0.8073535]
[1721931810582,5.8896,169.79,169.73,0.8073535]
[1721931810787,29.94,169.82,169.73,0.8073535]
[1721931811212,5.8889,169.81,169.73,0.8073535]
[1721931811515,5.8897,169.79,169.73,0.8073535]
[1721931811689,29.94,169.79,169.73,0.8073535]
[1721931811891,6.2219,169.76,169.73,0.8073535]
[1721931812227,36.1619,169.76,169.73,0.8073535]
[1721931812405,35.8317,169.73,169.72,1.53390483]
[1721931812593,5.8931,169.69,169.58,22.5471]
[1721931812794,14.7275,169.75,169.58,22.5471]
[1721931812993,29.94,169.73,169.64,5.8947]
[1721931813214,29.94,169.73,169.58,23.72611148]
[1721931813441,29.94,169.7,169.58,22.5471]
[1721931813713,29.94,169.7,169.61,5.8958]
[1721931813714,35.8328,169.7,169.61,5.8958]
[1721931813909,35.8328,169.7,169.58,22.5471]
[1721931814312,5.8931,169.69,169.58,22.5471]
[1721931815196,5.8931,169.69,169.56,0.8073535]
[1721931815197,29.94,169.67,169.56,0.8073535]
[1721931815402,29.94,169.67,169.59,5.8965]
[1721931815606,35.833,169.7,169.56,0.8073535]
[1721931816327,22.2676,169.68,169.56,0.8073535]
[1721931816623,29.94,169.64,169.56,0.8073535]
[1721931816821,29.94,169.64,169.57,5.8971]
[1721931817197,29.94,169.64,169.56,0.8073535]
[1721931817398,29.94,169.67,169.6,5.896]
[1721931817629,29.94,169.67,169.6,5.8962]
[1721931818003,22.2676,169.68,169.61,5.8958]
[1721931818203,22.2676,169.68,169.56,0.8073535]
[1721931818725,28.1611,169.68,169.56,0.8073535]
[1721931818898,28.1611,169.68,169.59,5.8965]
[1721931818899,29.94,169.67,169.59,5.8965]
[1721931819098,29.94,169.67,169.6,5.8961]
[1721931819330,29.94,169.67,169.56,0.8073535]
[1721931819526,29.94,169.67,169.56,20.8073535]
[1721931819708,29.94,169.67,169.57,45.0]
[1721931819915,29.94,169.67,169.6,5.8959]
[1721931820109,29.94,169.67,169.58,5.8965]
[1721931820310,5.8942,169.66,169.57,45.0]
[1721931820509,29.94,169.67,169.57,45.0]
[1721931820719,5.8942,169.66,169.57,50.897]
[1721931820901,29.94,169.67,169.57,45.0]
[1721931821107,29.94,169.63,169.56,0.8073535]
[1721931823202,6.6069,169.62,169.56,0.8073535]
[1721931823432,5.896,169.61,169.56,0.8073535]
[1721931823624,4.035212,169.59,169.56,0.8073535]
[1721931827212,4.035212,169.59,169.58,5.8969]
[1721931828408,4.035212,169.59,169.58,52.07596677]
[1721931828614,21.4076,169.71,169.65,5.8941]
[1721931828941,29.94,169.69,169.58,45.0]
[1721931829124,29.94,169.69,169.61,5.8956]
[1721931829427,21.4076,169.71,169.59,1.1789848]
[1721931829728,29.94,169.74,169.6,1.17883775]
[1721931829938,29.94,169.74,169.61,1.17865248]
[1721931830229,21.4076,169.76,169.7,5.8926]
[1721931830609,21.4076,169.76,169.68,5.8931]
[1721931831108,27.2984,169.76,169.67,5.8934]
[1721931831441,21.4076,169.76,169.72,5.8919]
[1721931831812,21.4076,169.76,169.69,5.893]
[1721931832011,21.4076,169.76,169.7,5.8926]
[1721931832206,21.4076,169.76,169.66,5.894]
[1721931832207,5.8912,169.75,169.66,5.894]
[1721931832536,21.4076,169.76,169.67,45.0]
[1721931832707,21.4076,169.76,169.69,5.8929]
[1721931833458,21.4076,169.76,169.69,5.893]
[1721931834012,21.4076,169.76,169.67,45.0]
[1721931834624,27.2983,169.76,169.63,6.1677]
[1721931834931,21.4076,169.76,169.64,50.8945]
[1721931835230,5.892,169.73,169.64,5.8945]
[1721931835611,51.4576,169.76,169.59,6.1677]
[1721931835612,5.8914,169.74,169.59,7.3464154]
[1721931835813,5.8914,169.74,169.6,20.0]
[1721931836014,5.891,169.75,169.66,5.894]
[1721931836527,51.4576,169.76,169.67,5.8935]
[1721931836725,21.4076,169.76,169.63,1.17869327]
[1721931837319,5.8912,169.75,169.63,1.17869327]
[1721931837626,21.4076,169.76,169.63,1.17869327]
[1721931837841,5.8913,169.74,169.65,5.8944]
[1721931838213,21.4076,169.76,169.6,1.1787135]
[1721931838414,21.4076,169.76,169.59,6.1677]
[1721931838415,51.4576,169.76,169.59,6.1677]
[1721931838737,14.7277,169.75,169.58,1.17882575]
[1721931838910,14.7277,169.75,169.62,5.8955]
[1721931839116,5.8924,169.71,169.62,5.8955]
[1721931839422,5.8927,169.7,169.62,5.8955]
[1721931839608,5.8935,169.68,169.58,1.17895583]
[1721931839820,14.7277,169.75,169.58,21.17895583]
[1721931840234,5.8938,169.67,169.58,1.17895583]
[1721931840527,21.0524,169.67,169.59,5.8964]
[1721931840728,21.0524,169.67,169.6,5.8961]
[1721931840951,21.0524,169.67,169.59,5.8965]
[1721931841264,21.0524,169.67,169.61,5.8958]
[1721931841552,21.0524,169.67,169.61,7.07480821]
[1721931841848,5.8923,169.72,169.63,5.895]
[1721931842038,5.8921,169.72,169.63,5.895]
[1721931842236,5.8921,169.72,169.63,7.07384617]
[1721931842630,22.9256,169.74,169.65,5.8944]
[1721931842840,5.8917,169.73,169.65,5.8944]
[1721931843152,22.9256,169.74,169.67,5.8936]
[1721931843479,22.9256,169.74,169.68,1.17856395]
[1721931843748,22.9256,169.74,169.66,5.8941]
[1721931843951,22.9256,169.74,169.68,45.0]
[1721931844251,22.286,169.79,169.74,5.8912]
[1721931844758,6.1676,169.83,169.7,1.1781132]
[1721931844930,6.1676,169.83,169.73,5.8914]
[1721931845265,5.889,169.81,169.72,5.8917]
[1721931845423,6.1676,169.83,169.68,1.17805952]
[1721931845625,6.1676,169.83,169.72,5.8917]
[1721931845626,5.8889,169.81,169.72,5.8917]
[1721931845835,5.8889,169.81,169.73,46.17814639]
[1721931846033,12.0561,169.83,169.74,5.8912]
[1721931846253,12.0561,169.83,169.75,5.8909]
[1721931846461,6.1676,169.83,169.76,1.17795923]
[1721931846759,6.1676,169.83,169.74,7.0689277]
[1721931846960,6.1676,169.83,169.76,5.8905]
[1721931847129,6.1676,169.83,169.75,5.8909]
[1721931847339,21.9253,169.88,169.76,45.0]
[1721931847670,21.9253,169.88,169.79,5.8893]
[1721931847671,27.8119,169.88,169.79,5.8893]
[1721931847971,27.8119,169.88,169.8,5.8892]
[1721931848561,27.8119,169.88,169.76,45.0]
[1721931848562,5.8855,169.91,169.83,5.8882]
[1721931848860,22.4037,169.93,169.84,45.0]
[1721931849066,5.8852,169.92,169.84,45.0]
[1721931849235,28.2884,169.93,169.84,50.8878]
[1721931849657,28.2884,169.93,169.84,45.0]
[1721931849658,5.8853,169.92,169.84,45.0]
[1721931850234,22.4037,169.93,169.77,1.17736756]
[1721931850468,5.8862,169.89,169.81,5.8888]
[1721931850669,30.05,169.92,169.78,1.17752658]
[1721931850957,30.05,169.88,169.71,1.17778287]
[1721931851148,5.8879,169.84,169.75,5.8909]
[1721931851355,5.8875,169.85,169.71,1.17778287]
[1721931851544,5.8872,169.86,169.71,1.17778287]
[1721931851742,30.05,169.88,169.75,5.8908]
[1721931851942,6.6139,169.83,169.71,1.17778287]
[1721931852168,27.6844,169.83,169.71,1.17778287]
[1721931852365,5.8892,169.81,169.72,5.892]
[1721931852547,5.8892,169.81,169.73,5.8916]
[1721931853266,21.7962,169.83,169.65,7.34587486]